bitfinex-derivatives/quotes_BNBF0:USTF0_20250413
["timestamp","ask_amount","ask_price","bid_price","bid_amount"]
[1744528948713,0.30969512,594.03,592.5,0.30267855]
[1744528948917,0.30969512,594.03,592.52,0.33754134]
[1744528949219,0.30969512,594.03,592.53,0.30267855]
[1744528949513,0.30969512,594.03,592.55,0.33752425]
[1744528949718,0.30969512,594.03,592.56,0.30267855]
[1744528949918,0.30969512,594.05,592.58,0.33750717]
[1744528950117,0.30969512,594.02,592.58,0.33750717]
[1744528950319,0.30969512,594.01,592.59,2.27267855]
[1744528950618,0.30969512,594.0,592.61,0.33749008]
[1744528950814,0.30969512,594.05,592.62,0.30267855]
[1744528951018,0.29331693,594.0,592.64,0.337473]
[1744528951222,0.30969512,593.99,592.65,0.30267855]
[1744528951419,0.29331693,594.0,592.66,0.33746161]
[1744528951716,0.30974919,593.99,592.67,0.30267461]
[1744528952116,0.30974919,593.99,592.68,0.33745022]
[1744528952317,0.30974919,593.99,592.69,0.30267461]
[1744528952517,0.30974919,593.99,592.7,0.33743883]
[1744528952822,0.30974919,593.98,592.71,0.30267461]
[1744528953020,0.30974919,594.05,592.72,0.33742745]
[1744528953215,0.30974919,594.04,592.73,0.30267461]
[1744528953420,0.30974919,594.03,592.74,0.33741606]
[1744528953721,0.30974919,594.02,592.75,0.30267461]
[1744528953920,0.29329962,594.02,592.76,0.33740468]
[1744528954117,0.30974919,594.01,592.77,0.30267461]
[1744528954720,0.29329962,594.02,592.76,0.33740468]
[1744528954917,0.30974763,594.01,592.78,0.30267306]
[1744528955220,0.30974763,594.01,592.79,0.30267306]
[1744528955418,0.30974763,594.01,592.77,0.30267306]
[1744528955614,0.30974763,594.01,592.78,0.30267306]
[1744528955817,0.30974763,594.05,592.77,0.30267306]
[1744528956017,0.30974763,594.04,592.77,0.30267306]
[1744528956222,0.30974763,594.05,592.77,0.30267306]
[1744528956418,0.30974763,594.04,592.77,0.30267306]
[1744528956617,0.30974763,594.05,592.77,0.30267306]
[1744528956816,0.29329591,594.03,592.77,0.30267306]
[1744528957120,0.30974763,594.02,592.77,0.30267306]
[1744528958023,0.30974817,594.01,592.78,0.30267361]
[1744528958217,0.30974817,594.01,592.77,0.30267361]
[1744528958417,0.30974817,594.0,592.77,0.30267361]
[1744528958620,0.30974817,594.02,592.77,0.30267361]
[1744528958823,0.30974817,594.01,592.77,0.30267361]
[1744528959020,0.30974817,594.05,592.77,0.30267361]
[1744528959223,0.30974817,594.04,592.77,0.30267361]
[1744528959524,0.33666633,594.06,592.76,0.33740468]
[1744528959721,0.30974702,594.03,592.78,0.30267246]
[1744528960027,0.30974702,594.02,592.79,0.30267246]
[1744528960325,0.30974702,594.02,592.77,0.30267246]
[1744528960521,0.30974702,594.02,592.78,0.30267246]
[1744528960825,0.30974702,594.02,592.79,0.30267246]
[1744528961025,0.30974702,594.02,592.77,0.30267246]
[1744528961320,0.30974702,594.02,592.78,0.33739329]
[1744528961529,0.30974921,594.01,592.79,0.30267465]
[1744528961720,0.30974921,594.05,592.8,0.33738191]
[1744528961920,0.30974921,594.05,592.81,0.3026693]
[1744528962820,0.29329097,594.04,592.81,0.3026693]
[1744528963024,0.30974921,594.03,592.81,0.3026693]
[1744528963225,0.30974921,594.03,592.82,0.33737053]
[1744528964420,0.29329097,594.04,592.82,0.33737053]
[1744528964725,0.30973577,594.03,592.82,0.33737053]
[1744528965020,0.30973577,594.02,592.82,0.33737053]
[1744528965225,0.30973577,594.05,592.82,0.33737053]
[1744528965825,0.30973577,594.05,592.83,0.30266566]
[1744528965826,0.29331322,594.04,592.83,0.30266566]
[1744528966121,0.30974018,594.03,592.84,0.30266567]
[1744528966321,0.30974018,594.03,592.83,0.30266567]
[1744528966826,0.30974018,594.03,592.82,0.33737053]
[1744528967727,0.30974018,594.05,592.82,0.33737053]
[1744528967928,0.29331322,594.02,592.82,0.33737053]
[1744528968128,0.30974018,594.01,592.83,0.30266524]
[1744528970832,0.33666633,594.06,592.82,0.33737053]
[1744528971034,0.2932885,594.0,592.83,0.30266457]
[1744528971232,0.30973909,593.99,592.83,0.30266457]
[1744528972433,0.2932885,594.0,592.82,0.33737053]
[1744528972633,0.30973875,593.99,592.83,0.30266423]
[1744528973833,0.30973875,594.05,592.83,0.30266423]
[1744528974033,0.30973875,593.98,592.83,0.30266423]
[1744528974334,0.30973875,593.97,592.83,0.30266423]
[1744528974533,0.30973875,593.96,592.83,0.30266423]
[1744528974834,0.30973875,593.95,592.83,0.30266423]
[1744528976834,0.30973875,594.05,592.83,0.30266423]
[1744528977235,0.33666633,594.06,592.82,0.33737053]
[1744528977435,0.30973568,594.05,592.83,0.30266118]
[1744528977633,0.30973568,594.05,592.84,0.33735915]
[1744528977828,0.29328355,594.04,592.85,0.30266118]
[1744528978033,0.30973568,594.03,592.85,1.05666118]
[1744528978333,0.30973568,594.03,592.86,0.30266118]
[1744528978634,0.30973568,594.03,592.87,0.33734208]
[1744528978836,0.30973568,594.03,592.87,1.03034208]
[1744528979337,0.30973568,594.03,592.88,0.555]
[1744528979931,0.30973568,594.02,592.89,0.3373307]
[1744528980135,0.30973568,594.05,592.89,0.3373307]
[1744528980432,0.30973568,594.04,592.89,0.3373307]
[1744528980630,0.30973568,594.05,592.89,0.3373307]
[1744528980831,0.29326131,594.03,592.89,0.3373307]
[1744528981037,0.30973568,594.02,592.89,0.3373307]
[1744528982335,0.30973568,594.02,592.9,0.819]
[1744528982537,0.30973568,594.02,592.9,1.495]
[1744528982732,0.30973568,594.01,592.9,1.495]
[1744528982937,0.30973568,594.0,592.9,1.83232501]
[1744528983138,0.30973568,594.05,592.9,1.83232501]
[1744528983333,0.30973568,594.04,592.9,1.83232501]
[1744528983537,0.30973568,594.05,592.9,1.83232501]
[1744528983732,0.33666633,594.06,592.9,1.83232501]
[1744528983733,0.30973568,594.04,592.9,1.83232501]
[1744528984038,0.29325884,594.03,592.9,1.83232501]
[1744528984335,0.30973568,594.02,592.9,1.83232501]
[1744528984837,0.29325884,594.03,592.9,1.83232501]
[1744528985034,0.30974203,594.02,592.9,1.83232501]
[1744528985738,0.30974203,594.05,592.9,1.83232501]
[1744528985933,0.2932749,594.01,592.9,1.83232501]
[1744528986137,0.30974203,594.0,592.9,1.83232501]
[1744528988039,0.2932749,594.01,592.9,1.83232501]
[1744528988338,0.30972802,594.0,592.9,1.83232501]
[1744528990742,0.30972802,594.0,592.91,0.30264854]
[1744528991840,0.33666633,594.06,592.91,0.30264854]
[1744528991841,0.30972802,593.99,592.91,0.30264854]
[1744528992042,0.33666633,594.06,592.91,0.30264854]
[1744528992043,0.29326502,594.01,592.91,0.30264854]
[1744528992242,0.30972802,594.0,592.91,0.30264854]
[1744528992844,0.29326502,594.01,592.9,1.83232501]
[1744528993045,0.3097213,594.0,592.91,0.30264685]
[1744528994042,0.3097213,594.0,592.91,0.63996617]
[1744528994243,0.3097213,594.0,592.92,0.30264685]
[1744528994543,0.30971783,593.99,592.91,0.33731932]
[1744528994744,0.30971783,594.05,592.92,0.30264339]
[1744528994944,0.30971783,594.04,592.92,0.30264339]
[1744528995141,0.30971783,594.05,592.92,0.30264339]
[1744528995342,0.30971783,594.04,592.92,0.30264339]
[1744528995645,0.30971783,594.03,592.92,0.30264339]
[1744528995845,0.30971783,594.02,592.92,0.30264339]
[1744528997740,0.30972372,594.01,592.93,0.30264923]
[1744528997941,0.30972372,594.0,592.94,0.30264923]
[1744528998246,0.30972372,594.05,592.92,0.30264923]
[1744528998446,0.30972372,594.04,592.93,0.30264923]
[1744528998647,0.30972372,594.05,592.92,0.30264923]
[1744528998847,0.60297885,594.04,592.93,0.30264923]
[1744528999143,0.30972372,594.03,592.94,0.30264923]
[1744528999348,0.30972372,594.03,592.92,0.30264923]
[1744528999647,0.30972372,594.03,592.95,0.615]
[1744528999847,0.30972372,594.03,592.96,0.30264923]
[1744529000249,0.30972372,594.03,592.95,0.615]
[1744529002250,0.29325513,594.04,592.95,0.615]
[1744529002552,1.58997186,594.03,592.95,0.615]
[1744529002768,0.30972952,594.02,592.96,0.30265213]
[1744529003752,0.30972952,594.02,592.97,0.715]
[1744529003949,1.28024234,594.03,592.97,0.715]
[1744529004149,0.3097364,594.02,592.97,0.715]
[1744529005552,0.3097364,594.02,592.98,0.30264407]
[1744529005752,0.3097364,594.02,592.97,0.715]
[1744529006351,0.3097364,594.02,592.98,0.30264924]
[1744529006754,0.3097364,594.02,592.99,0.624]
[1744529007053,0.60298783,594.02,593.0,0.504]
[1744529007256,0.30971803,594.01,593.0,0.504]
[1744529008658,0.30971803,594.01,593.01,0.632]
[1744529009858,0.30971803,594.04,593.01,0.632]
[1744529010158,0.29324772,594.02,593.01,0.632]
[1744529010458,0.30971714,594.01,593.01,0.632]
[1744529012363,0.30971714,594.01,593.02,0.661]
[1744529012862,1.61690867,594.06,593.02,0.661]
[1744529012863,0.30971714,594.0,593.02,0.661]
[1744529013065,0.30971714,594.01,593.02,0.661]
[1744529013264,0.30971714,594.0,593.02,0.661]
[1744529013464,0.30971714,594.01,593.02,0.661]
[1744529014063,0.29324648,594.02,593.02,0.661]
[1744529014266,0.30971958,594.01,593.02,0.661]
[1744529015966,0.29324648,594.02,593.02,0.661]
[1744529016164,0.30971958,594.01,593.02,0.661]
[1744529018370,0.29324648,594.02,593.02,0.661]
[1744529018570,0.30972251,594.01,593.02,0.661]
[1744529018770,0.30972251,594.03,593.02,0.661]
[1744529019871,0.29324401,594.02,593.02,0.661]
[1744529020070,0.30972251,594.01,593.02,0.661]
[1744529020671,0.29324401,594.02,593.02,0.661]
[1744529020871,0.30971904,594.01,593.02,0.661]
[1744529021871,0.30972391,594.0,593.02,0.661]
[1744529022166,0.30972391,593.99,593.02,0.661]
[1744529022369,0.30972391,593.98,593.02,0.661]
[1744529022567,0.30972391,594.01,593.02,0.661]
[1744529022772,0.30972391,594.0,593.02,0.661]
[1744529023069,0.30972391,594.01,593.02,0.661]
[1744529023267,0.30972391,594.0,593.02,0.661]
[1744529023471,0.30972391,594.01,593.02,0.661]
[1744529023672,0.30972391,594.0,593.02,0.661]
[1744529023973,0.30972391,593.99,593.02,0.661]
[1744529024173,0.30972391,594.01,593.02,0.661]
[1744529024375,0.30972391,594.0,593.02,0.661]
[1744529024575,0.30972391,594.01,593.02,0.661]
[1744529024775,0.30972391,594.0,593.02,0.661]
[1744529024973,0.30972396,593.99,593.02,0.661]
[1744529025177,0.30972396,593.98,593.02,0.661]
[1744529025378,0.30972396,593.97,593.02,0.661]
[1744529025578,0.30972396,594.01,593.02,0.661]
[1744529025780,0.30972396,594.0,593.02,0.661]
[1744529025980,0.30972396,594.01,593.02,0.661]
[1744529027781,0.30972396,594.05,593.02,0.661]
[1744529027979,0.29324648,594.02,593.02,0.661]
[1744529028184,0.30972151,594.01,593.02,0.661]
[1744529030985,0.30972151,594.01,593.02,1.331]
[1744529031980,0.30972151,594.01,593.02,2.067]
[1744529032782,0.29324648,594.02,593.02,2.067]
[1744529032995,0.30972542,594.01,593.02,2.067]
[1744529033483,0.30972542,594.01,593.02,2.772]
[1744529034085,0.30972542,594.0,593.02,2.772]
[1744529034283,0.30972542,594.05,593.02,2.772]
[1744529034492,0.30972542,593.99,593.02,2.772]
[1744529034685,0.30972542,593.98,593.02,2.772]
[1744529034888,0.29324154,594.04,593.02,2.772]
[1744529035089,1.58996776,594.03,593.02,2.772]
[1744529035389,0.30972542,594.02,593.02,2.772]
[1744529035889,1.28024234,594.03,593.02,2.772]
[1744529036189,0.30972361,594.02,593.02,2.772]
[1744529036890,0.60296886,594.02,593.02,2.772]
[1744529037190,0.30972361,594.01,593.02,2.772]
[1744529039191,0.3097258,594.0,593.02,3.327]
[1744529039391,0.3097258,593.99,593.02,3.327]
[1744529039591,0.3097258,593.98,593.02,3.327]
[1744529039995,0.3097258,593.97,593.02,3.327]
[1744529040293,0.3097258,593.96,593.02,3.327]
[1744529040492,0.3097258,594.01,593.02,3.327]
[1744529040692,0.30972565,594.0,593.02,3.327]
[1744529040889,0.30972565,594.01,593.02,3.327]
[1744529041690,0.29324648,594.02,593.02,3.327]
[1744529041894,0.30972513,594.01,593.02,3.327]
[1744529043295,0.29324648,594.02,593.02,3.327]
[1744529043495,0.30971834,594.01,593.02,3.327]
[1744529045796,0.30971834,594.0,593.02,3.327]
[1744529046096,0.30971834,593.99,593.02,3.327]
[1744529046297,0.30971834,594.05,593.02,3.327]
[1744529046597,0.30972026,594.04,593.02,3.327]
[1744529046897,0.30972026,594.03,593.02,3.327]
[1744529048001,0.29324154,594.04,593.02,3.327]
[1744529048200,0.30972111,594.03,593.02,3.327]
[1744529048804,0.30972111,594.05,593.02,3.327]
[1744529049002,0.30972111,594.04,593.02,3.327]
[1744529049204,0.30972111,594.05,593.02,3.327]
[1744529049806,0.29324154,594.04,593.02,3.327]
[1744529050005,0.30972111,594.03,593.02,3.968]
[1744529051104,1.57348388,594.04,593.02,3.968]
[1744529051308,0.30971965,594.03,593.02,3.968]
[1744529052007,0.29324401,594.02,593.02,3.968]
[1744529052208,0.30971965,594.01,593.02,3.968]
[1744529054204,0.29324401,594.02,593.02,3.968]
[1744529054407,0.30971733,594.01,593.02,3.968]
[1744529054810,0.30971733,594.05,593.02,3.968]
[1744529055010,0.29324648,594.02,593.02,3.968]
[1744529055211,0.30971733,594.01,593.02,3.968]
[1744529057406,0.29324648,594.02,593.02,3.968]
[1744529057609,0.30971926,594.01,593.02,3.968]
[1744529057811,0.30971926,594.0,593.02,3.968]
[1744529058112,0.30971926,593.99,593.02,3.968]
[1744529058312,0.30971926,594.05,593.02,3.968]
[1744529058506,0.30971926,594.04,593.02,3.968]
[1744529058706,0.30971926,594.03,593.02,3.968]
[1744529059010,0.29324154,594.03,593.02,3.968]
[1744529059207,0.30971833,594.02,593.02,3.968]
[1744529060607,0.29324154,594.03,593.02,3.968]
[1744529060608,1.28024234,594.04,593.02,3.968]
[1744529060813,0.30971737,594.03,593.02,3.968]
[1744529061009,0.60296138,594.03,593.02,3.968]
[1744529061215,0.30971737,594.02,593.02,3.968]
[1744529063817,1.28024234,594.04,593.02,3.968]
[1744529064117,0.29324525,594.02,593.02,3.968]
[1744529064317,0.30972348,594.01,593.02,3.968]
[1744529068717,0.30972254,594.0,593.02,3.968]
[1744529068916,0.30972254,594.01,593.02,3.968]
[1744529069124,0.30972254,594.0,593.02,3.968]
[1744529069324,0.30972254,594.01,593.02,3.968]
[1744529069822,0.30972254,594.02,593.02,3.968]
[1744529070020,0.30972254,594.01,593.02,3.968]
[1744529070219,1.28024234,594.03,593.02,3.968]
[1744529070418,0.30972041,594.02,593.02,3.968]
[1744529070923,0.60296566,594.02,593.02,3.968]
[1744529071124,0.30972041,594.01,593.02,3.968]
[1744529072826,0.30972041,594.02,593.02,3.968]
[1744529073026,0.60296566,594.02,593.02,3.968]
[1744529073325,0.29324525,594.02,593.02,3.968]
[1744529073526,0.30971938,594.01,593.02,3.968]
[1744529078827,0.30971938,594.05,593.02,3.968]
[1744529079028,0.30971938,594.04,593.02,3.968]
[1744529079232,0.30971938,594.05,593.02,3.968]
[1744529079931,0.29324154,594.04,593.02,3.968]
[1744529080136,0.30971938,594.03,593.02,3.968]
[1744529081835,0.30971938,594.05,593.02,3.968]
[1744529082037,0.29324154,594.02,593.02,3.968]
[1744529082232,0.30971938,594.01,593.02,3.968]
[1744529087834,0.30971938,594.05,593.02,3.968]
[1744529088039,0.29327367,594.0,593.02,3.968]
[1744529088236,0.30980806,593.99,593.02,3.968]
[1744529090841,0.30980806,594.03,593.02,3.968]
[1744529091042,0.29327614,593.98,593.02,3.968]
[1744529091242,0.30980806,593.97,593.02,3.968]
[1744529093841,0.30980806,594.03,593.02,3.968]
[1744529094146,0.30980806,594.02,593.02,3.968]
[1744529094346,0.30980806,594.03,593.02,3.968]
[1744529094546,0.30980806,594.01,593.02,3.968]
[1744529094846,0.30980806,594.0,593.02,3.968]
[1744529095147,0.30980806,593.99,593.02,3.968]
[1744529095343,0.30980806,594.01,593.02,3.968]
[1744529095547,0.30980806,594.0,593.02,3.968]
[1744529095848,0.30980806,593.99,593.02,3.968]
[1744529096043,0.30980806,594.01,593.02,3.968]
[1744529096246,0.30980806,594.0,593.02,3.968]
[1744529096442,0.2932712,594.02,593.02,3.968]
[1744529096443,0.30980806,593.99,593.02,3.968]
[1744529096647,0.30980806,594.01,593.02,3.968]
[1744529096842,0.30980806,594.0,593.02,3.968]
[1744529097045,0.2932712,594.0,593.02,3.968]
[1744529097242,0.30980806,593.99,593.02,3.968]
[1744529097447,0.3097886,593.98,593.02,3.968]
[1744529097647,0.3097886,593.99,593.02,3.968]
[1744529097847,0.3097886,593.98,593.02,3.968]
[1744529098146,0.3097886,593.97,593.02,3.968]
[1744529098345,0.3097886,593.99,593.02,3.968]
[1744529098546,0.3097886,593.98,593.02,3.968]
[1744529098747,0.3097886,593.97,593.02,3.968]
[1744529098945,0.3097886,593.99,593.02,3.968]
[1744529099142,0.3097886,593.98,593.02,3.968]
[1744529099346,0.3097886,593.99,593.02,3.968]
[1744529099848,0.3097886,594.03,593.02,3.968]
[1744529100548,0.33667766,594.04,593.02,3.968]
[1744529100748,0.30978728,594.03,593.02,3.968]
[1744529101048,0.60302264,594.03,593.02,3.968]
[1744529101249,0.30978728,594.02,593.02,3.968]
[1744529101747,0.30974461,594.01,593.02,3.968]
[1744529101950,0.30974461,594.02,593.02,3.968]
[1744529102149,0.30974461,594.01,593.02,3.968]
[1744529102348,0.30974461,594.0,593.02,3.968]
[1744529102546,0.30974461,594.02,593.02,3.968]
[1744529102749,0.30974461,594.01,593.02,3.968]
[1744529102946,0.30974461,594.03,593.02,3.968]
[1744529103853,0.29325637,594.02,593.02,3.968]
[1744529104053,0.30974461,594.01,593.02,3.968]
[1744529104853,0.29325637,594.02,593.02,3.968]
[1744529105049,0.30974529,594.01,593.02,3.968]
[1744529105854,0.30974529,594.03,593.02,3.968]
[1744529106150,0.30974529,594.02,593.02,3.968]
[1744529106455,0.33667766,594.04,593.02,3.968]
[1744529106456,0.30974529,594.01,593.02,3.968]
[1744529106654,0.30974529,594.03,593.02,3.968]
[1744529106855,0.29325637,594.0,593.02,3.968]
[1744529107050,0.30974529,593.99,593.02,3.968]
[1744529108851,0.29326131,593.98,593.02,3.968]
[1744529109057,0.30974529,593.97,593.02,3.968]
[1744529111761,0.30974529,594.03,593.02,3.968]
[1744529111960,0.30974529,594.02,593.02,3.968]
[1744529112161,0.30974529,594.03,593.02,3.968]
[1744529112361,0.30974529,594.02,593.02,3.968]
[1744529112662,0.30974529,594.03,593.02,3.968]
[1744529112962,0.29325637,594.01,593.02,3.968]
[1744529113163,0.30974529,594.0,593.02,3.968]
[1744529114363,0.30973361,593.99,593.02,3.968]
[1744529114663,0.30973361,594.0,593.02,3.968]
[1744529114863,0.30973361,593.99,593.02,3.968]
[1744529115061,0.30973361,594.03,593.02,3.968]
[1744529115959,0.29325637,594.02,593.02,3.968]
[1744529116164,0.30973361,594.01,593.02,3.968]
[1744529117865,0.30973361,594.03,593.02,3.968]
[1744529118964,0.29325637,594.02,593.02,3.968]
[1744529119263,0.30973312,594.01,593.02,3.968]
[1744529120963,0.30973312,594.03,593.02,3.968]
[1744529121160,0.30973312,594.02,593.02,3.968]
[1744529121363,0.30973312,594.03,593.02,3.968]
[1744529121966,0.29325637,594.02,593.02,3.968]
[1744529122166,0.30973312,594.01,593.02,3.968]
[1744529122359,0.29325637,594.02,593.02,3.968]
[1744529122561,0.30973916,594.01,593.02,3.968]
[1744529122761,0.30973916,594.0,593.02,3.968]
[1744529123064,0.30973916,594.01,593.02,3.968]
[1744529123261,0.30973916,594.0,593.02,3.968]
[1744529123466,0.30973916,594.01,593.02,3.968]
[1744529125662,0.29325637,594.02,593.02,3.968]
[1744529125868,0.30973348,594.01,593.02,3.968]
[1744529126966,0.30973348,594.03,593.02,3.968]
[1744529127267,0.33667766,594.04,593.02,3.968]
[1744529127467,0.3097325,594.03,593.02,3.968]
[1744529127967,0.60297528,594.03,593.02,3.968]
[1744529128263,0.3097325,594.02,593.02,3.968]
[1744529128866,0.29324278,594.03,593.02,3.968]
[1744529129167,0.30973679,594.02,593.02,3.968]
[1744529129863,0.30973679,594.03,593.02,3.968]
[1744529130064,0.2932576,594.01,593.02,3.968]
[1744529130368,0.30973679,594.0,593.02,3.968]
[1744529130563,0.2932576,594.01,593.02,3.968]
[1744529130867,0.30973664,594.0,593.02,3.968]
[1744529132167,0.2932576,594.01,593.02,3.968]
[1744529132367,0.30976569,594.0,593.02,3.968]
[1744529132563,0.336706,593.99,593.02,3.968]
[1744529132762,0.30976569,593.98,593.02,3.968]
[1744529132962,0.33671734,593.97,593.02,3.968]
[1744529133261,0.30976569,593.96,593.02,3.968]
[1744529133465,0.6464887,593.96,593.02,3.968]
[1744529133663,0.30976569,593.95,593.02,3.968]
[1744529135965,0.29330086,593.94,593.02,3.968]
[1744529136170,0.30976569,593.93,593.02,3.968]
[1744529137066,0.29330086,593.94,593.02,3.968]
[1744529137270,0.30982412,593.93,593.02,3.968]
[1744529138871,0.30982412,593.95,593.02,3.968]
[1744529139170,0.30982412,593.94,593.02,3.968]
[1744529139370,0.30982412,593.95,593.02,3.968]
[1744529139571,0.30982412,593.94,593.02,3.968]
[1744529139771,0.30982412,593.95,593.02,3.968]
[1744529139967,0.30982412,593.94,593.02,3.968]
[1744529140267,0.29330086,593.94,593.02,3.968]
[1744529140464,0.30982543,593.93,593.02,3.968]
[1744529141971,0.30982543,593.95,593.02,3.968]
[1744529142172,0.30982543,593.94,593.02,3.968]
[1744529142372,0.30982543,593.93,593.02,3.968]
[1744529142672,0.30982543,593.92,593.02,3.968]
[1744529142868,0.29330086,593.92,593.02,3.968]
[1744529143073,0.30982543,593.91,593.02,3.968]
[1744529143271,0.30982543,593.9,593.02,3.968]
[1744529143472,0.30982543,593.89,593.02,3.968]
[1744529143673,0.29330086,593.92,593.02,3.968]
[1744529143973,0.30982531,593.91,593.02,3.968]
[1744529144268,0.30982531,593.9,593.02,3.968]
[1744529144472,0.30982531,593.89,593.02,3.968]
[1744529144672,0.33672301,593.96,593.02,3.968]
[1744529144673,0.30982531,593.91,593.02,3.968]
[1744529144868,0.30982531,593.9,593.02,3.968]
[1744529145072,0.30982531,593.89,593.02,3.968]
[1744529146074,0.29330086,593.9,593.02,3.968]
[1744529146274,0.30982586,593.89,593.02,3.968]
[1744529146971,0.29330086,593.9,593.02,3.968]
[1744529147178,0.30982563,593.89,593.02,3.968]
[1744529147974,0.30982563,593.95,593.02,3.968]
[1744529148170,0.30982563,593.94,593.02,3.968]
[1744529148474,0.30982563,593.93,593.02,3.968]
[1744529148673,0.3098282,593.92,593.02,3.968]
[1744529148870,0.3098282,593.95,593.02,3.968]
[1744529149072,0.29330086,593.92,593.02,3.968]
[1744529149277,0.3098282,593.91,593.02,3.968]
[1744529150281,0.29330086,593.92,593.02,3.968]
[1744529150581,0.30982873,593.91,593.02,3.968]
[1744529150880,0.29330086,593.91,593.02,3.968]
[1744529151081,0.30982873,593.9,593.02,3.968]
[1744529153877,0.30982873,593.95,593.02,3.968]
[1744529154986,0.29330086,593.94,593.02,3.968]
[1744529155185,0.30982873,593.93,593.02,3.968]
[1744529156990,0.30982873,593.95,593.02,3.968]
[1744529157189,0.30982873,593.94,593.02,3.968]
[1744529157488,0.30982873,593.93,593.02,3.968]
[1744529157788,0.30982873,593.95,593.02,3.968]
[1744529157984,0.29330086,593.92,593.02,3.968]
[1744529158289,0.30982873,593.91,593.02,3.968]
[1744529159091,0.30982873,593.9,593.02,3.968]
[1744529159283,0.30982873,593.91,593.02,3.968]
[1744529159484,0.30982873,593.9,593.02,3.968]
[1744529159690,0.30982873,593.91,593.02,3.968]
[1744529159885,0.30982873,593.9,593.02,3.968]
[1744529160188,0.30982873,593.89,593.02,3.968]
[1744529160490,0.30982873,593.88,593.02,3.968]
[1744529160789,0.30982873,593.87,593.02,3.968]
[1744529160992,0.30982873,593.86,593.02,3.968]
[1744529162891,0.30982873,593.95,593.02,3.968]
[1744529163890,0.29330086,593.94,593.02,3.968]
[1744529164090,0.30982873,593.93,593.02,3.968]
[1744529164591,0.29330086,593.94,593.02,3.968]
[1744529164788,0.30981905,593.93,593.02,3.968]
[1744529165890,0.30981905,593.95,593.02,3.968]
[1744529166090,0.29330333,593.92,593.02,3.968]
[1744529166390,0.30981905,593.91,593.02,3.968]
[1744529168889,0.30981905,593.9,593.02,3.968]
[1744529169090,0.2933058,593.9,593.02,3.968]
[1744529169288,0.30981905,593.89,593.02,3.968]
[1744529171193,0.2933058,593.9,593.02,3.968]
[1744529171395,0.30981633,593.89,593.02,3.968]
[1744529171993,0.30981633,593.88,593.02,3.968]
[1744529172194,0.30981633,593.95,593.02,3.968]
[1744529172995,0.29330086,593.94,593.02,3.968]
[1744529173193,0.30981633,593.93,593.02,3.968]
[1744529174892,0.30981633,593.95,593.02,3.968]
[1744529175892,0.29330086,593.94,593.02,3.968]
[1744529176197,0.30981633,593.93,593.02,3.968]
[1744529177700,1.28024234,593.95,593.02,3.968]
[1744529177900,0.30982739,593.94,593.02,3.968]
[1744529178900,0.29330209,593.93,593.02,3.968]
[1744529179093,0.30982739,593.92,593.02,3.968]
[1744529180603,0.30982739,593.91,593.02,3.968]
[1744529180803,0.30982739,593.9,593.02,3.968]
[1744529181103,0.30982739,593.89,593.02,3.968]
[1744529181299,0.30982739,593.94,593.02,3.968]
[1744529181498,0.30982739,593.93,593.02,3.968]
[1744529181704,1.28024234,593.83,593.02,3.968]
[1744529181898,0.30982739,593.82,593.02,3.968]
[1744529182804,1.28024234,593.83,593.02,3.968]
[1744529183007,0.30982863,593.82,593.02,3.968]
[1744529190003,0.30982863,593.81,593.02,3.968]
[1744529190209,0.30982863,593.88,593.02,3.968]
[1744529191005,0.29330951,593.87,593.02,3.968]
[1744529191209,0.30982863,593.86,593.02,3.968]
[1744529192512,0.29330951,593.87,593.02,3.968]
[1744529192807,0.30982724,593.86,593.02,3.968]
[1744529194109,0.29330951,593.87,593.02,3.968]
[1744529194413,0.30982908,593.86,593.02,3.968]
[1744529195815,0.29330951,593.87,593.02,3.968]
[1744529196114,0.30982404,593.86,593.02,3.968]
[1744529200612,0.29330951,593.87,593.02,3.968]
[1744529200816,0.30982603,593.86,593.02,3.968]
[1744529204921,0.30982603,593.95,593.02,3.968]
[1744529205123,0.29331198,593.85,593.02,3.968]